bitfinex/quotes_SOLUSD_20240906
["timestamp","ask_amount","ask_price","bid_price","bid_amount"]
[1725612598695,7.7724,128.66,128.64,22.43636366]
[1725612599581,7.772,128.67,128.65,1.55439376]
[1725612600410,7.772,128.67,128.65,46.55439376]
[1725612600618,7.772,128.67,128.65,45.0]
[1725612602514,19.4293,128.68,128.61,22.2688]
[1725612602681,20.0,128.66,128.61,22.2688]
[1725612603280,7.7743,128.63,128.61,22.2688]
[1725612603701,7.7738,128.64,128.61,22.2688]
[1725612604401,7.7738,128.64,128.62,45.0]
[1725612606608,7.7742,128.63,128.62,45.0]
[1725612606804,7.7758,128.61,128.58,40.7839]
[1725612607006,7.7758,128.61,128.59,1.5549823]
[1725612608010,7.775,128.62,128.59,1.5549823]
[1725612608206,7.775,128.62,128.59,9.3313823]
[1725612608600,7.775,128.62,128.58,48.5609]
[1725612609094,7.775,128.62,128.59,45.0]
[1725612609714,7.7754,128.61,128.59,45.0]
[1725612610809,7.775,128.62,128.59,52.7766]
[1725612611007,7.7743,128.63,128.59,52.7766]
[1725612611208,19.4327,128.65,128.6,0.39281317]
[1725612611209,27.7749,128.62,128.6,0.39281317]
[1725612611508,7.7756,128.61,128.59,45.0]
[1725612611714,27.7748,128.62,128.59,45.0]
[1725612616815,27.7748,128.62,128.6,1.55496672]
[1725612617013,27.7748,128.62,128.59,52.7765]
[1725612618315,20.0,128.62,128.59,52.7765]
[1725612618494,7.7743,128.63,128.59,52.7765]
[1725612618689,20.0,128.62,128.59,52.7765]
[1725612618992,27.775,128.62,128.59,52.7765]
[1725612619523,27.775,128.62,128.6,0.93898537]
[1725612619723,22.9828,128.71,128.6,69.44]
[1725612620020,7.7728,128.66,128.62,7.7744]
[1725612620192,7.7714,128.68,128.64,7.7731]
[1725612620923,7.7714,128.68,128.63,19.4351]
[1725612620924,7.7708,128.69,128.65,52.773]
[1725612621213,7.7708,128.69,128.66,7.7724]
[1725612621424,7.7702,128.7,128.67,45.0]
[1725612622131,7.7707,128.69,128.67,45.0]
[1725612622628,7.7712,128.68,128.66,45.0]
[1725612623718,7.7708,128.69,128.66,45.0]
[1725612627639,7.7702,128.7,128.66,52.7723]
[1725612627837,20.0,128.69,128.66,52.7723]
[1725612628135,20.0,128.69,128.67,7.7717]
[1725612628436,7.7689,128.72,128.68,52.7712]
[1725612628738,20.0,128.71,128.68,52.7712]
[1725612628948,20.0,128.71,128.69,7.7703]
[1725612629124,20.0,128.72,128.7,45.0]
[1725612630238,7.769,128.72,128.69,45.0]
[1725612630443,20.0,128.71,128.69,45.0]
[1725612630745,20.0,128.71,128.69,52.7706]
[1725612631044,35.4824,128.77,128.7,7.7699]
[1725612631250,20.0,128.76,128.71,45.0]
[1725612631541,7.7684,128.73,128.71,45.0]
[1725612631751,20.0,128.72,128.7,45.0]
[1725612632724,35.4824,128.77,128.7,45.0]
[1725612632930,7.7676,128.74,128.7,52.7697]
[1725612633758,7.7671,128.75,128.71,7.7692]
[1725612634047,7.7671,128.75,128.72,45.0]
[1725612634250,27.7676,128.74,128.72,45.0]
[1725612634623,27.7676,128.74,128.71,45.0]
[1725612635642,27.7677,128.74,128.71,45.0]
[1725612638447,20.0,128.74,128.71,52.7693]
[1725612638746,0.8266,128.79,128.72,6.2127]
[1725612638920,7.7665,128.76,128.73,45.0]
[1725612639125,20.0,128.75,128.73,45.0]
[1725612639726,7.7659,128.77,128.74,7.7675]
[1725612639925,7.766,128.77,128.75,45.0]
[1725612640130,7.766,128.77,128.73,52.768]
[1725612640525,7.766,128.77,128.74,7.7675]
[1725612640728,7.766,128.77,128.75,45.0]
[1725612641033,7.7654,128.78,128.75,45.0]
[1725612641431,0.8266,128.79,128.78,7.7651]
[1725612641629,0.8266,128.79,128.78,52.7651]
[1725612642460,0.8266,128.79,128.78,45.0]
[1725612644142,0.8266,128.79,128.78,45.89654543]
[1725612644353,0.8266,128.79,128.78,46.55272694]
[1725612644856,0.8266,128.79,128.78,52.7651]
[1725612646563,0.8266,128.79,128.78,53.99029189]
[1725612647671,0.8266,128.79,128.78,52.7651]
[1725612655459,0.8266,128.79,128.78,7.7651]
[1725612655654,0.8266,128.79,128.77,21.733]
[1725612655655,8.5914,128.79,128.76,19.4159]
[1725612655856,0.8266,128.79,128.76,19.4159]
[1725612656236,0.8266,128.79,128.76,27.1819]
[1725612657955,0.8266,128.79,128.77,45.0]
[1725612658665,0.8266,128.79,128.77,52.7656]
[1725612658840,0.8266,128.79,128.77,45.0]
[1725612661348,20.8266,128.79,128.77,45.0]
[1725612662475,28.5911,128.79,128.77,45.0]
[1725612663348,20.8266,128.79,128.77,45.0]
[1725612663676,0.8266,128.79,128.77,52.7657]
[1725612664862,0.8266,128.79,128.77,54.3185745]
[1725612665057,7.7651,128.78,128.77,45.0]
[1725612665278,0.8266,128.79,128.77,45.0]
[1725612665747,0.8266,128.79,128.76,45.0]
[1725612665949,20.8266,128.79,128.76,45.0]
[1725612667152,28.5915,128.79,128.76,45.0]
[1725612668181,28.5915,128.79,128.76,52.7663]
[1725612668182,20.8266,128.79,128.76,52.7663]
[1725612668471,0.8266,128.79,128.76,45.0]
[1725612668649,0.8266,128.79,128.76,7.7663]
[1725612668850,0.8266,128.79,128.77,45.0]
[1725612669349,20.8266,128.79,128.77,46.55288395]
[1725612670381,0.8266,128.79,128.78,7.7651]
[1725612670678,0.8266,128.79,128.78,52.7651]
[1725612670862,0.8266,128.79,128.78,45.0]
[1725612672658,0.8266,128.79,128.77,45.0]
[1725612672865,0.8266,128.79,128.77,46.55292514]
[1725612673264,0.8266,128.79,128.77,52.7655]
[1725612674384,0.8266,128.79,128.77,45.0]
[1725612674688,0.8266,128.79,128.77,54.31854386]
[1725612675278,0.8266,128.79,128.77,52.7656]
[1725612676386,0.8266,128.79,128.78,7.7651]
[1725612676594,0.8266,128.79,128.78,52.7651]
[1725612681686,7.7652,128.78,128.75,19.4174]
[1725612681993,8.5915,128.79,128.74,21.3728]
[1725612682171,20.0,128.78,128.75,13.44883044]
[1725612682492,8.5915,128.79,128.77,7.7657]
[1725612682493,0.8266,128.79,128.77,7.7657]
[1725612683367,0.8266,128.79,128.78,45.0]
[1725612683569,0.8266,128.79,128.77,45.0]
[1725612684590,8.5912,128.79,128.76,45.0]
[1725612689000,0.8266,128.79,128.77,7.7653]
[1725612689209,0.8266,128.79,128.78,45.0]
[1725612691594,0.8266,128.79,128.78,77.86680568]
[1725612691902,0.8266,128.79,128.78,64.4129]
[1725612693706,0.8266,128.79,128.78,70.10197163]
[1725612697901,0.8266,128.79,128.78,64.4129]
[1725612698087,0.8266,128.79,128.78,45.0]
[1725612698416,7.7653,128.78,128.75,7.7665]
[1725612698582,7.7653,128.78,128.76,5.69284393]
[1725612698902,7.7653,128.78,128.75,7.7665]
[1725612699119,7.7653,128.78,128.76,5.69254652]
[1725612699282,0.8266,128.79,128.75,7.7665]
[1725612699485,8.5914,128.79,128.76,5.69327978]
[1725612699712,8.5914,128.79,128.75,7.7665]
[1725612699713,8.5914,128.79,128.77,45.0]
[1725612699897,8.5914,128.79,128.76,45.0]
[1725612704508,0.8266,128.79,128.76,64.4154]
[1725612704817,0.8266,128.79,128.77,7.7654]
[1725612705108,0.8266,128.79,128.78,45.0]
[1725612705603,0.8266,128.79,128.78,52.7651]
[1725612706503,0.8266,128.79,128.78,45.0]
[1725612711204,0.8266,128.79,128.78,7.7651]
[1725612711401,0.8266,128.79,128.78,52.7651]
[1725612718204,0.8266,128.79,128.74,19.4181]
[1725612718398,7.7667,128.76,128.72,30.3221]
[1725612718601,7.766,128.77,128.73,7.7681]
[1725612719803,7.7668,128.76,128.72,30.3223]
[1725612721728,19.4131,128.78,128.71,19.4222]
[1725612721936,7.7676,128.74,128.71,19.4222]
[1725612722233,20.0,128.77,128.71,19.4222]
[1725612722234,7.7671,128.75,128.71,19.4222]
[1725612723099,7.7677,128.74,128.72,45.0]
[1725612723324,7.7682,128.73,128.69,7.7701]
[1725612723534,7.7701,128.7,128.65,42.0626]
[1725612723700,7.7712,128.68,128.65,19.4316]
[1725612724410,7.7708,128.69,128.65,27.2045]
[1725612724619,20.0,128.68,128.65,27.2045]
[1725612725211,20.0,128.68,128.65,19.4316]
[1725612725423,7.7706,128.69,128.65,27.2042]
[1725612725623,20.0,128.68,128.65,27.2042]
[1725612726919,20.0,128.68,128.66,45.0]
[1725612731735,27.7713,128.68,128.66,45.0]
[1725612731945,7.7718,128.67,128.65,45.0]
[1725612732117,7.7718,128.67,128.64,45.0]
[1725612733135,20.0,128.68,128.62,6.4467]
[1725612733312,7.7726,128.66,128.62,14.2214]
[1725612733866,7.772,128.67,128.63,7.7742]
[1725612734053,20.0,128.66,128.63,7.7742]
[1725612734547,20.0,128.66,128.62,6.4467]
[1725612734750,7.7732,128.65,128.61,27.2131]
[1725612735128,7.7732,128.65,128.62,7.7748]
[1725612735531,7.7732,128.65,128.61,27.2133]
[1725612735733,7.7732,128.65,128.62,45.0]
[1725612737449,20.0,128.68,128.63,19.4354]
[1725612737635,7.7717,128.68,128.64,45.0]
[1725612739026,20.0,128.67,128.64,45.0]
[1725612739240,20.0,128.67,128.65,19.4323]
[1725612739444,20.0,128.68,128.66,45.0]
[1725612739640,27.7712,128.68,128.66,45.0]
[1725612739847,7.7718,128.67,128.66,45.0]
[1725612740129,20.0,128.67,128.63,7.7742]
[1725612740636,20.0,128.69,128.63,7.7742]
[1725612741342,7.7725,128.66,128.63,7.7742]
[1725612741742,20.0,128.69,128.64,45.0]
[1725612741952,7.773,128.65,128.63,45.0]
[1725612742139,20.0,128.69,128.63,45.0]
[1725612742452,7.7726,128.66,128.63,45.0]
[1725612744351,23.04980058,128.69,128.64,1.30325318]
[1725612744352,7.7719,128.67,128.64,1.30325318]
[1725612744552,20.0,128.66,128.63,52.7741]
[1725612744737,27.7724,128.66,128.63,52.7741]
[1725612746766,7.7724,128.66,128.63,52.7741]
[1725612747139,18.04033136,128.7,128.59,21.5339]
[1725612747338,7.7749,128.62,128.59,21.5339]
[1725612747656,7.7744,128.63,128.59,21.5339]
[1725612747863,7.7749,128.62,128.59,21.5339]
[1725612748073,7.7749,128.62,128.59,6.3596]
[1725612748361,7.7756,128.61,128.57,27.2214]
[1725612750237,7.7756,128.61,128.58,45.0]
[1725612750755,7.7761,128.6,128.58,45.0]
[1725612751158,7.7766,128.59,128.56,22.4338]
[1725612751359,7.7766,128.59,128.55,7.7789]
[1725612751955,7.7782,128.57,128.53,30.1836]
[1725612752363,7.7772,128.58,128.54,7.7796]
[1725612753260,7.7772,128.58,128.55,45.0]
[1725612753960,7.7768,128.59,128.55,45.0]
[1725612754162,20.0,128.58,128.55,52.779]
[1725612755745,27.7772,128.58,128.55,45.0]
[1725612760464,20.0,128.58,128.53,6.6125]
[1725612760670,7.7792,128.55,128.51,7.781]
[1725612760979,7.7792,128.55,128.5,42.2336]
[1725612760980,7.7782,128.57,128.53,7.7802]
[1725612761139,20.0,128.56,128.53,7.7802]
[1725612761344,20.0,128.56,128.52,19.4518]
[1725612761968,20.0,128.59,128.53,45.0]
[1725612762474,7.778,128.57,128.53,52.7802]
[1725612762676,20.0,128.56,128.53,52.7802]
[1725612763372,7.7773,128.58,128.54,27.2283]
[1725612763554,20.0,128.57,128.55,45.0]
[1725612764555,27.7779,128.57,128.55,45.0]
[1725612766260,20.0,128.57,128.55,45.0]
[1725612768151,27.7779,128.57,128.55,45.0]
[1725612768856,20.0,128.57,128.55,45.0]
[1725612769956,20.0,128.58,128.55,45.0]
[1725612771150,20.0,128.58,128.45,38.9234]
[1725612771151,19.448,128.55,128.47,22.5685]
[1725612771451,19.448,128.55,128.48,27.2414]
[1725612771452,7.7811,128.52,128.48,27.2414]
[1725612772268,19.448,128.55,128.48,19.4582]
[1725612772468,7.7813,128.52,128.48,27.2414]
[1725612772660,7.7818,128.51,128.47,30.3522]
[1725612773188,19.448,128.55,128.47,42.028]
[1725612773487,7.7811,128.52,128.48,7.7828]
[1725612773783,20.0,128.51,128.49,7.7826]
[1725612774163,20.0,128.51,128.5,45.0]
[1725612774382,20.0,128.51,128.49,45.0]
[1725612774578,16.6185,128.56,128.49,45.0]
[1725612774786,7.7798,128.54,128.49,27.2389]
[1725612774981,20.0,128.53,128.5,45.0]
[1725612775788,20.0,128.53,128.5,52.7818]
[1725612775975,20.0,128.53,128.51,27.2347]
[1725612776283,7.7773,128.58,128.53,19.4502]
[1725612776483,7.778,128.57,128.53,27.2302]
[1725612776674,7.778,128.57,128.54,45.0]
[1725612779103,7.7779,128.57,128.54,45.0]
[1725612779287,20.0,128.56,128.54,45.0]
[1725612781104,20.0,128.56,128.54,52.7796]
[1725612781294,27.7779,128.57,128.54,45.0]
[1725612783685,7.7785,128.56,128.54,45.0]
[1725612784188,27.778,128.57,128.54,45.0]
[1725612785401,20.0,128.57,128.54,45.0]
[1725612785599,6.5955,128.62,128.55,19.4474]
[1725612785803,6.5955,128.62,128.56,45.0]
[1725612785981,7.7768,128.59,128.56,45.0]
[1725612786896,20.0,128.58,128.56,45.0]
[1725612787197,27.7773,128.58,128.56,45.0]
[1725612787509,7.7778,128.57,128.56,45.0]
[1725612787806,27.7778,128.57,128.55,45.0]
[1725612788003,7.7778,128.57,128.55,45.0]
[1725612788581,7.7778,128.57,128.54,6.1682]
[1725612789084,27.7776,128.58,128.54,13.9475]
[1725612789886,27.7776,128.58,128.55,45.0]
[1725612792980,27.7776,128.58,128.55,52.7789]
[1725612793806,20.0,128.58,128.56,7.7784]
[1725612794018,7.7759,128.61,128.57,52.7778]
[1725612795502,20.0,128.6,128.57,52.7778]
[1725612797111,7.7749,128.62,128.58,7.7772]
[1725612797318,7.7749,128.62,128.59,45.0]
[1725612798488,15.8938,128.67,128.59,45.0]
[1725612798716,15.8938,128.67,128.6,7.7759]
[1725612799021,7.7736,128.64,128.61,45.0]
[1725612799220,7.7731,128.65,128.61,45.0]
[1725612799902,7.7731,128.65,128.61,52.7752]
[1725612800105,7.7725,128.66,128.61,52.7752]
[1725612800803,7.7725,128.66,128.62,7.7745]
[1725612801004,7.7725,128.66,128.63,45.0]
[1725612802320,20.0,128.65,128.63,45.0]
[1725612803338,27.773,128.65,128.62,45.0]
[1725612806527,20.0,128.65,128.62,45.0]
[1725612806695,20.0,128.67,128.62,52.7745]
[1725612808003,20.0,128.67,128.63,27.209]
[1725612808202,20.0,128.67,128.64,45.0]
[1725612808813,20.0,128.67,128.64,52.773]
[1725612809004,20.0,128.67,128.65,7.7729]
[1725612809214,27.7712,128.68,128.66,45.0]
[1725612809616,27.7712,128.68,128.65,45.0]
[1725612811634,7.7718,128.67,128.65,45.0]
[1725612811839,20.0,128.66,128.64,45.0]
[1725612812717,20.0,128.66,128.64,52.7735]
[1725612813818,27.7726,128.66,128.63,19.4354]
[1725612814450,20.0,128.66,128.63,27.2091]
[1725612814648,7.7709,128.69,128.65,7.773]
[1725612814815,20.0,128.68,128.65,7.773]
[1725612815243,7.7709,128.69,128.66,45.0]
[1725612815949,7.7703,128.7,128.66,52.7722]
[1725612816440,3.03300249,128.71,128.67,7.7717]
[1725612816441,7.7695,128.71,128.67,7.7717]
[1725612816738,7.7695,128.71,128.68,45.0]
[1725612817538,7.7689,128.72,128.68,52.7711]
[1725612817721,16.2237,128.75,128.69,7.7701]
[1725612817924,16.2237,128.75,128.7,45.0]
[1725612818142,16.2237,128.75,128.68,52.7709]
[1725612818341,7.7684,128.73,128.68,52.7709]
[1725612818741,7.7692,128.72,128.68,45.0]
[1725612819134,7.7704,128.7,128.66,15.4166]
[1725612819321,27.7706,128.69,128.64,7.7734]
[1725612819532,7.7706,128.69,128.64,7.7734]
[1725612819733,20.0,128.68,128.64,7.7734]
[1725612820151,27.7715,128.68,128.64,7.7734]
[1725612821757,27.7715,128.68,128.65,45.0]
[1725612822455,7.7701,128.7,128.65,64.4323]
[1725612822655,20.0,128.69,128.65,64.4323]
[1725612823236,20.0,128.69,128.66,7.7723]
[1725612823531,7.7701,128.7,128.67,45.0]
[1725612823741,7.7697,128.71,128.67,52.7717]
[1725612824069,20.0,128.7,128.67,52.7717]
[1725612830659,27.7701,128.7,128.67,52.7717]
[1725612832182,27.7701,128.7,128.67,45.0]
[1725612833287,27.7701,128.7,128.67,52.7717]
[1725612833457,20.0,128.7,128.67,52.7717]
[1725612833784,27.77,128.7,128.67,52.7717]
[1725612834085,27.77,128.7,128.67,45.0]
[1725612834384,20.0,128.7,128.67,45.0]
[1725612834551,20.0,128.69,128.66,45.0]
[1725612834754,20.0,128.71,128.66,45.0]
[1725612835268,7.7708,128.69,128.66,45.0]
[1725612837466,20.0,128.71,128.66,64.4308]
[1725612837669,7.77,128.7,128.67,7.7716]
[1725612837894,20.0,128.69,128.68,45.0]
[1725612838762,20.0,128.69,128.67,45.0]
[1725612839166,27.7709,128.69,128.67,45.0]
[1725612839400,27.7709,128.69,128.65,7.7727]
[1725612839401,27.7709,128.69,128.66,45.0]
[1725612839592,7.7715,128.68,128.66,45.0]
[1725612839901,7.7715,128.68,128.65,45.0]
[1725612841306,7.7715,128.68,128.65,52.7729]
[1725612844609,27.7708,128.69,128.65,52.7729]
[1725612846502,20.0,128.69,128.65,64.4313]
[1725612846705,20.0,128.69,128.67,7.7718]
[1725612846892,20.0,128.69,128.68,45.0]
[1725612847204,27.7706,128.69,128.68,45.0]
[1725612847396,27.7706,128.69,128.67,45.0]
[1725612850389,20.0,128.69,128.67,45.0]
[1725612850797,20.0,128.69,128.67,52.7718]
[1725612850998,20.0,128.69,128.67,45.0]
[1725612856315,20.0,128.69,128.67,52.7717]
[1725612857316,27.7708,128.69,128.67,45.0]
[1725612857706,27.7708,128.69,128.66,52.7723]
[1725612857922,20.0,128.69,128.68,45.0]
[1725612859013,35.6412,128.75,128.68,51.12006584]
[1725612859217,35.6412,128.75,128.69,13.47746603]
[1725612859218,7.7684,128.73,128.69,13.47746603]
[1725612859394,7.7684,128.73,128.7,45.0]
[1725612860402,20.0,128.72,128.7,45.0]
[1725612861521,3.09887875,128.76,128.7,64.4246]
[1725612861821,7.767,128.75,128.71,13.47522139]
[1725612862002,7.767,128.75,128.72,45.0]
[1725612863216,20.0,128.74,128.72,45.0]
[1725612863618,20.0,128.74,128.69,7.7703]
[1725612863920,20.0,128.76,128.69,7.7703]
[1725612864129,20.0,128.76,128.7,5.7064043]
[1725612864327,7.7691,128.72,128.68,49.1503]
[1725612864625,7.7691,128.72,128.69,5.70646007]
[1725612864922,7.7691,128.72,128.69,7.7706]
[1725612865127,7.7691,128.72,128.7,45.0]
[1725612867410,19.4175,128.75,128.7,45.0]
[1725612867411,7.7694,128.71,128.7,45.0]
[1725612867611,7.77,128.7,128.66,27.2025]
[1725612867910,7.77,128.7,128.67,5.70762011]
[1725612868219,7.77,128.7,128.66,27.2025]
[1725612868530,7.77,128.7,128.67,5.70739181]
[1725612868729,7.77,128.7,128.67,7.7717]
[1725612869042,20.0,128.71,128.68,45.0]
[1725612869043,27.7698,128.71,128.68,45.0]
[1725612869334,20.0,128.71,128.68,52.7709]
[1725612871129,19.4162,128.76,128.69,5.706809]
[1725612871340,7.7681,128.74,128.7,45.0]
[1725612871646,7.7681,128.74,128.7,52.7697]
[1725612872619,7.7664,128.76,128.72,7.7687]
[1725612872825,7.7664,128.76,128.73,45.0]
[1725612873134,7.7664,128.76,128.74,1.55301203]
[1725612873316,7.7664,128.76,128.73,46.55301204]
[1725612873514,7.7664,128.76,128.73,45.0]
[1725612874140,20.0,128.75,128.73,45.0]
[1725612879750,20.0,128.75,128.73,45.81607599]
[1725612880132,20.0,128.75,128.73,45.0]
[1725612880529,7.7655,128.78,128.74,7.7672]
[1725612880740,20.0,128.77,128.75,45.0]
[1725612881521,27.7659,128.77,128.75,45.0]
[1725612888050,7.7663,128.76,128.75,45.0]
[1725612888349,27.7663,128.76,128.75,45.0]
[1725612888553,7.7676,128.74,128.7,22.1929]
[1725612888849,7.7676,128.74,128.71,52.7693]
[1725612890739,7.7671,128.75,128.71,52.7693]
[1725612890943,7.7671,128.75,128.72,7.7687]
[1725612891259,7.7671,128.75,128.73,45.0]
[1725612891625,27.7666,128.76,128.73,45.0]
[1725612891824,20.0,128.75,128.73,45.0]
[1725612892021,0.8266,128.79,128.76,7.7659]
[1725612892242,0.8266,128.79,128.77,52.7656]
[1725612894339,0.8266,128.79,128.78,7.7651]
[1725612894526,0.8266,128.79,128.78,45.0]
[1725612898357,0.8266,128.79,128.78,52.7651]
[1725612900643,0.8266,128.79,128.75,27.1837]
[1725612900850,7.7653,128.78,128.75,19.4172]
[1725612901160,7.7653,128.78,128.74,30.5825]
[1725612901452,8.5914,128.79,128.75,7.7669]
[1725612902023,8.5914,128.79,128.76,45.0]
[1725612904369,8.5914,128.79,128.76,52.7663]
[1725612905043,0.8266,128.79,128.76,52.7663]
[1725612905253,20.8266,128.79,128.77,9.31863176]
[1725612905438,0.8266,128.79,128.78,45.0]
[1725612907168,0.8266,128.79,128.78,52.7651]
[1725612912474,0.8266,128.79,128.77,27.1785]
[1725612914045,0.8266,128.79,128.78,52.7651]
[1725612914467,0.8266,128.79,128.78,45.0]
[1725612915255,0.8266,128.79,128.78,52.7651]
[1725612916278,0.8266,128.79,128.78,45.0]
[1725612919884,0.8266,128.79,128.78,52.7651]
[1725612923176,0.8266,128.79,128.75,58.2512]
[1725612923381,0.8266,128.79,128.75,19.4171]
[1725612923677,8.5915,128.79,128.75,27.1837]
[1725612923882,20.0,128.78,128.75,27.1837]
[1725612924062,20.0,128.78,128.76,7.7663]
[1725612924861,0.8266,128.79,128.76,7.7663]
[1725612925075,0.8266,128.79,128.77,52.7657]
[1725612925297,0.8266,128.79,128.78,7.7651]
[1725612925574,0.8266,128.79,128.78,52.7651]
[1725612927356,0.8266,128.79,128.78,58.46486704]
[1725612927577,0.8266,128.79,128.78,52.7651]
[1725612927755,0.8266,128.79,128.78,45.0]
[1725612928379,0.8266,128.79,128.78,52.7651]
[1725612933581,0.8266,128.79,128.78,58.46674536]
[1725612935269,0.8266,128.79,128.78,58.46698186]
[1725612938193,0.8266,128.79,128.78,60.89660548]
[1725612938377,0.8266,128.79,128.78,52.7651]
[1725612938558,0.8266,128.79,128.78,58.46695264]
[1725612940968,0.8266,128.79,128.78,82.39128926]
[1725612941184,0.8266,128.79,128.78,81.15475264]
[1725612948177,0.8266,128.79,128.78,81.15403129]
[1725612949702,0.8266,128.79,128.78,13.46623129]
[1725612949916,0.8266,128.79,128.78,5.70113129]
[1725612950080,0.8266,128.79,128.75,58.2515]
[1725612950081,28.5912,128.79,128.75,27.184]
[1725612950281,28.5912,128.79,128.76,5.70336463]
[1725612950501,28.5912,128.79,128.75,27.184]
[1725612951181,20.8266,128.79,128.76,7.7663]
[1725612951377,20.8266,128.79,128.77,45.0]
[1725612953396,20.8266,128.79,128.77,52.7657]
[1725612953596,0.8266,128.79,128.77,52.7657]
[1725612955510,0.8266,128.79,128.77,45.0]
[1725612956706,0.8266,128.79,128.77,52.7657]
[1725612959313,8.5913,128.79,128.77,45.0]
[1725612960312,0.8266,128.79,128.77,45.0]
[1725612962188,0.8266,128.79,128.77,52.7657]
[1725612962811,0.8266,128.79,128.77,45.0]
[1725612963014,8.5916,128.79,128.77,45.0]
[1725612963210,8.5916,128.79,128.76,45.0]
[1725612963410,8.5916,128.79,128.78,45.0]
[1725612963714,8.5916,128.79,128.76,45.0]
[1725612963715,28.5916,128.79,128.76,45.0]
[1725612965207,7.7652,128.78,128.76,45.0]
[1725612965420,20.8266,128.79,128.77,19.4139]
[1725612965421,0.8266,128.79,128.77,19.4139]
[1725612965593,0.8266,128.79,128.78,52.7651]
[1725612966592,0.8266,128.79,128.78,58.46712527]
[1725612972106,0.8266,128.79,128.78,52.7651]
[1725612972409,0.8266,128.79,128.78,58.46561682]
[1725612975623,0.8266,128.79,128.78,52.7651]
[1725612975920,0.8266,128.79,128.78,58.46696516]
[1725612980202,0.8266,128.79,128.78,52.7651]
[1725612980514,0.8266,128.79,128.78,58.46696469]
[1725612981614,0.8266,128.79,128.78,52.7651]
[1725612982813,0.8266,128.79,128.78,58.4673884]
[1725612986301,0.8266,128.79,128.78,5.7022884]
[1725612986527,0.8266,128.79,128.77,19.4139]
[1725612987016,0.8266,128.79,128.77,27.1796]
[1725612987820,0.8266,128.79,128.78,45.0]
[1725612989643,0.8266,128.79,128.78,52.7651]
[1725612990807,0.8266,128.79,128.78,58.4653874]
[1725612991331,0.8266,128.79,128.78,52.7651]
[1725612992324,0.8266,128.79,128.78,58.46547068]
[1725612995316,0.8266,128.79,128.78,52.7651]
[1725612995510,0.8266,128.79,128.78,58.46234359]
[1725612999131,0.8266,128.79,128.78,58.46164781]
[1725612999716,0.8266,128.79,128.78,60.88871742]
[1725613000627,0.8266,128.79,128.78,83.19491742]
[1725613002419,0.8266,128.79,128.78,75.0713]
[1725613002624,0.8266,128.79,128.78,80.77056472]
[1725613002822,0.8266,128.79,128.78,83.19873566]
[1725613004149,0.8266,128.79,128.78,85.62601367]
[1725613006142,0.8266,128.79,128.78,83.19784273]
[1725613009235,0.8266,128.79,128.78,80.77056472]
[1725613009425,0.8266,128.79,128.78,83.19831276]
[1725613010044,0.8266,128.79,128.78,87.9780315]
[1725613010346,0.8266,128.79,128.78,88.47239415]
[1725613010558,0.8266,128.79,128.78,88.67612022]
[1725613010734,0.8266,128.79,128.78,87.9780315]